bitfinex/quotes_BTCUSD_20260104
["timestamp","ask_amount","ask_price","bid_price","bid_amount"]
[1767544748827,0.04602621,91319.0,91315.0,0.06570654]
[1767544749028,0.04602621,91319.0,91315.0,0.0109511]
[1767544749349,0.04602621,91319.0,91314.0,0.06238048]
[1767544750067,0.05697683,91319.0,91314.0,0.06234048]
[1767544750276,0.01095062,91319.0,91314.0,0.00758458]
[1767544751311,0.06570315,91320.0,91310.0,0.20969222]
[1767544751495,0.01095062,91319.0,91314.0,0.01095122]
[1767544751684,0.06570315,91320.0,91314.0,0.06570717]
[1767544752082,0.06570315,91320.0,91314.0,0.01095122]
[1767544752083,0.01095062,91319.0,91314.0,0.01095122]
[1767544753007,0.06570315,91320.0,91315.0,0.0109511]
[1767544753206,0.0109505,91320.0,91315.0,0.0109511]
[1767544754017,0.06570391,91319.0,91313.0,0.06570754]
[1767544754195,0.01095086,91317.0,91312.0,0.06570876]
[1767544755624,0.01095086,91317.0,91312.0,0.01095146]
[1767544755774,0.01095098,91316.0,91311.0,0.06570901]
[1767544755976,0.06570545,91317.0,91312.0,0.01095146]
[1767544756214,0.01095098,91316.0,91311.0,0.06570901]
[1767544756391,0.01095098,91316.0,91312.0,0.06080676]
[1767544756604,0.06570529,91317.0,91312.0,0.01095146]
[1767544756785,0.06570388,91319.0,91314.0,0.01095122]
[1767544757127,0.01095062,91319.0,91314.0,0.06101856]
[1767544757292,0.06570304,91320.0,91315.0,0.0109511]
[1767544757655,0.0657822,91321.0,91316.0,0.01095098]
[1767544758180,0.0109505,91320.0,91315.0,0.06570611]
[1767544758434,0.0109505,91320.0,91315.0,0.05147381]
[1767544758643,0.0657822,91321.0,91315.0,0.06242491]
[1767544758821,0.0109505,91320.0,91315.0,0.06242491]
[1767544758982,0.01095062,91319.0,91314.0,0.06101856]
[1767544759183,0.06570306,91320.0,91315.0,0.0109511]
[1767544759388,0.01095062,91319.0,91314.0,0.06101854]
[1767544759633,0.06570306,91320.0,91315.0,0.0109511]
[1767544760565,0.01095062,91319.0,91315.0,0.0109511]
[1767544760739,0.05697683,91319.0,91315.0,0.0109511]
[1767544761042,0.04602621,91318.0,91314.0,0.0610186]
[1767544761188,0.01095062,91319.0,91315.0,0.0109511]
[1767544761395,0.01095062,91319.0,91314.0,0.0610186]
[1767544762018,0.06570306,91320.0,91315.0,0.0109511]
[1767544762250,0.0109505,91320.0,91315.0,0.06570656]
[1767544762824,0.06578113,91321.0,91316.0,0.0547549]
[1767544763441,0.06578113,91321.0,91315.0,0.06570656]
[1767544764056,0.0109505,91320.0,91315.0,0.0109511]
[1767544764296,0.0109505,91320.0,91315.0,0.06570658]
[1767544764493,7.882e-05,91321.0,91316.0,0.01095098]
[1767544764847,0.05483086,91321.0,91316.0,0.01095098]
[1767544765261,0.06578124,91321.0,91316.0,0.01095098]
[1767544765464,0.06570306,91320.0,91315.0,0.05475548]
[1767544766317,0.06570306,91320.0,91315.0,0.06570658]
[1767544766522,0.0109505,91320.0,91315.0,0.06570658]
[1767544767166,0.06578124,91321.0,91315.0,0.06570658]
[1767544767167,7.882e-05,91321.0,91320.0,0.000999]
[1767544767366,0.04610503,91321.0,91318.0,0.06570429]
[1767544767908,0.04610503,91321.0,91319.0,0.05475302]
[1767544768261,0.04515103,91321.0,91319.0,0.05475302]
[1767544768891,0.04602621,91329.0,91319.0,0.01095062]
[1767544769095,0.06569665,91329.0,91323.0,0.01095014]
[1767544769279,0.06569665,91329.0,91324.0,0.01095002]
[1767544769497,0.01094942,91329.0,91324.0,0.01095002]
[1767544770028,0.06569587,91330.0,91324.0,0.01095002]
[1767544770587,0.06569587,91330.0,91325.0,0.0109499]
[1767544770993,0.06569587,91330.0,91324.0,0.06569972]
[1767544771191,0.03286906,91332.0,91326.0,0.06569855]
[1767544771435,0.08761444,91332.0,91326.0,0.06569855]
[1767544771995,0.08761444,91332.0,91327.0,0.01094966]
[1767544772515,0.08761444,91332.0,91326.0,0.04695809]
[1767544772719,0.02192,91332.0,91327.0,0.01094966]
[1767544773141,0.02192,91332.0,91329.0,0.01094942]
[1767544774176,0.02192,91332.0,91329.0,0.06569644]
[1767544775110,0.01094882,91334.0,91330.0,0.0109493]
[1767544775315,0.04687708,91334.0,91330.0,0.0109493]
[1767544775519,0.04687708,91334.0,91330.0,0.01080693]
[1767544775851,0.000999,91330.0,91328.0,0.06569618]
[1767544776056,0.06569332,91334.0,91328.0,0.06569618]
[1767544776211,0.05474481,91333.0,91328.0,0.06569618]
[1767544776800,0.10162189,91333.0,91328.0,0.06569618]
[1767544777009,0.10162189,91333.0,91259.0,0.13166557]
[1767544777010,0.01095278,91301.0,91292.0,0.01095386]
[1767544777210,0.01095254,91303.0,91294.0,0.01095362]
[1767544777421,0.01095338,91296.0,91286.0,0.01095458]
[1767544777588,0.01095326,91297.0,91290.0,0.0109541]
[1767544777801,0.01095326,91297.0,91292.0,0.01095386]
[1767544778010,0.02192,91298.0,91294.0,0.01095362]
[1767544778208,0.08763889,91298.0,91294.0,9.46e-05]
[1767544779137,0.01095326,91297.0,91294.0,9.46e-05]
[1767544780063,0.06571998,91297.0,91294.0,9.46e-05]
[1767544780514,0.05476705,91296.0,91294.0,9.46e-05]
[1767544780709,0.05476705,91296.0,91294.0,6e-07]
[1767544780912,0.05476751,91295.0,91294.0,6e-07]
[1767544781078,0.05476705,91296.0,91294.0,6e-07]
[1767544782217,0.05476751,91295.0,91294.0,6e-07]
[1767544782365,0.04687708,91294.0,91290.0,0.0109541]
[1767544782561,0.06572101,91295.0,91290.0,0.01103292]
[1767544782966,0.00082618,91290.0,91287.0,0.0001516]
[1767544783341,0.05477171,91288.0,91287.0,0.00051206]
[1767544783675,0.05477591,91281.0,91280.0,0.0004]
[1767544783913,0.01095506,91282.0,91278.0,0.04517092]
[1767544784126,0.01095506,91282.0,91276.0,0.0876544]
[1767544784391,0.0109553,91280.0,91276.0,0.02192]
[1767544784568,0.01095506,91282.0,91277.0,0.01095566]
[1767544784788,0.01095506,91282.0,91277.0,0.0109113]
[1767544785126,0.06572896,91284.0,91282.0,7.9e-05]
[1767544785326,0.06572864,91285.0,91282.0,7.9e-05]
[1767544785566,0.01095458,91286.0,91282.0,7.9e-05]
[1767544785761,0.01095458,91286.0,91280.0,0.06573151]
[1767544785964,0.0109541,91290.0,91283.0,0.06572937]
[1767544786163,0.01095422,91289.0,91284.0,0.01095482]
[1767544786368,0.01087534,91288.0,91283.0,0.06572937]
[1767544786595,0.0534463,91290.0,91285.0,0.0109547]
[1767544786923,0.02192,91288.0,91285.0,0.0109547]
[1767544787106,0.02192,91288.0,91284.0,0.05612574]
[1767544787734,0.02192,91288.0,91284.0,0.01095482]
[1767544787939,0.01095374,91293.0,91288.0,0.01095434]
[1767544788112,0.02192,91292.0,91290.0,0.09994137]
[1767544788312,0.0328735,91295.0,91290.0,0.04517092]
[1767544788514,0.08764147,91295.0,91290.0,0.04517092]
[1767544788714,0.0328735,91295.0,91290.0,0.0109541]
[1767544789039,0.02228024,91295.0,91291.0,0.01095398]
[1767544789307,0.02228024,91295.0,91292.0,0.01095386]
[1767544789436,0.02228024,91295.0,91292.0,0.01091386]
[1767544789974,0.02228024,91295.0,91292.0,0.0107715]
[1767544790271,0.02228024,91295.0,91292.0,0.06554079]
[1767544790485,0.02228024,91295.0,91292.0,0.06539844]
[1767544791443,0.00036024,91295.0,91292.0,0.06539844]
[1767544792234,0.000999,91292.0,91291.0,0.06572272]
[1767544792469,0.00036024,91295.0,91291.0,0.01095398]
[1767544792674,0.01131374,91295.0,91291.0,0.01095398]
[1767544793095,0.00036024,91295.0,91292.0,0.01095386]
[1767544793393,0.00036024,91295.0,91292.0,0.06572288]
[1767544793694,0.00036024,91295.0,91293.0,0.05476859]
[1767544793930,0.00036024,91295.0,91294.0,0.09993903]
[1767544794254,0.00036024,91295.0,91294.0,0.04517092]
[1767544794688,0.00036024,91295.0,91294.0,0.09993903]
[1767544798397,0.00036024,91295.0,91294.0,0.05476811]
[1767544800075,0.00036024,91295.0,91294.0,0.05376911]
[1767544800857,0.00036024,91295.0,91293.0,0.05476859]
[1767544801598,2.4e-07,91295.0,91294.0,0.05476811]
[1767544805961,2.4e-07,91295.0,91290.0,0.23003591]
[1767544805962,0.01095386,91292.0,91285.0,0.07669341]
[1767544806110,0.01095386,91292.0,91287.0,0.01095446]
[1767544806310,0.01095398,91291.0,91285.0,0.0657271]
[1767544806533,0.05477069,91290.0,91285.0,0.0657271]
[1767544806751,0.01095434,91288.0,91282.0,0.01095506]
[1767544806952,0.04739993,91285.0,91276.0,0.02192]
[1767544807150,0.04775993,91282.0,91279.0,0.01095542]
[1767544807366,0.04775993,91282.0,91280.0,0.05477651]
[1767544807577,0.04739993,91282.0,91281.0,0.05477591]
[1767544807919,0.04739993,91282.0,91279.0,0.06573248]
[1767544808128,0.04739993,91282.0,91279.0,0.06537248]
[1767544808346,0.04739993,91282.0,91275.0,0.05477951]
[1767544808544,0.04739993,91282.0,91276.0,0.0657345]
[1767544808545,0.04739993,91280.0,91276.0,0.0657345]
[1767544809059,0.0109553,91280.0,91276.0,0.01095578]
[1767544809258,0.0109553,91280.0,91275.0,0.05477951]
[1767544810393,0.0109553,91280.0,91276.0,0.01095578]
[1767544810766,0.06572982,91283.0,91280.0,0.000999]
[1767544810961,0.06572982,91283.0,91278.0,0.06573317]
[1767544810962,0.01095494,91283.0,91278.0,0.06573317]
[1767544811167,0.06572928,91284.0,91278.0,0.06573317]
[1767544811367,0.06572928,91284.0,91278.0,0.06473417]
[1767544811574,0.06572983,91283.0,91278.0,0.00995654]
[1767544811773,0.01095542,91279.0,91275.0,0.0109559]
[1767544812104,0.00872028,91279.0,91275.0,0.0109559]
[1767544812402,0.06573089,91282.0,91276.0,0.01095578]
[1767544812606,0.04739993,91280.0,91276.0,0.01095578]
[1767544812808,0.01095518,91281.0,91277.0,0.01095566]
[1767544813110,0.01095494,91283.0,91278.0,0.09112001]
[1767544813343,0.08764749,91286.0,91281.0,0.01095518]
[1767544813518,0.08764749,91286.0,91283.0,0.000999]
[1767544813819,0.0109547,91285.0,91281.0,0.01095518]
[1767544814326,0.04739993,91285.0,91281.0,0.01095518]
[1767544814488,0.04739993,91284.0,91280.0,0.06573127]
[1767544814684,0.04640093,91284.0,91280.0,0.06573127]
[1767544815849,0.11213006,91284.0,91279.0,0.06573253]
[1767544816147,0.04640093,91284.0,91280.0,0.06573163]
[1767544817627,0.02192,91286.0,91282.0,0.01095506]
[1767544818006,0.02192,91286.0,91283.0,0.01095494]
[1767544818407,0.02192,91286.0,91284.0,0.04730728]
[1767544818670,0.02192,91286.0,91284.0,0.03307045]
[1767544819433,0.02192,91286.0,91283.0,0.06572957]
[1767544819772,0.04739993,91285.0,91283.0,0.06572957]
[1767544819975,0.02192,91286.0,91283.0,0.06572957]
[1767544820740,0.03287422,91289.0,91285.0,0.0109547]
[1767544820926,0.02192,91289.0,91285.0,0.06572797]
[1767544821674,0.08764539,91289.0,91285.0,0.0109547]
[1767544821978,0.04739993,91287.0,91284.0,0.06572882]
[1767544822676,0.04739993,91283.0,91282.0,0.06572988]
[1767544822838,0.05835439,91287.0,91283.0,0.01095494]
[1767544823040,0.04739993,91286.0,91283.0,0.01095494]
[1767544823361,0.04739993,91286.0,91283.0,0.06572961]
[1767544823952,0.08764638,91289.0,91283.0,0.06572961]
[1767544823953,0.08764638,91289.0,91284.0,0.06572886]
[1767544824156,0.06572611,91288.0,91284.0,0.01095482]
[1767544824434,0.02192,91289.0,91285.0,0.0109547]
[1767544824669,0.08764558,91289.0,91285.0,0.0109547]
[1767544824847,0.08764558,91289.0,91285.0,0.06572818]
[1767544825252,0.02192,91289.0,91285.0,0.06572818]
[1767544826281,0.02192,91289.0,91286.0,0.01095458]
[1767544826458,0.000999,91286.0,91285.0,0.0109547]
[1767544826665,0.000999,91286.0,91284.0,0.0657284]
[1767544827093,0.01095434,91288.0,91284.0,0.0657284]
[1767544827469,0.04739993,91287.0,91284.0,0.0657284]
[1767544828457,0.04739993,91287.0,91282.0,0.05477524]
[1767544828861,0.04739993,91287.0,91283.0,0.05477427]
[1767544829179,0.06572606,91288.0,91284.0,0.01095482]
[1767544830633,0.06572606,91288.0,91283.0,0.06244733]
[1767544831240,0.06572606,91288.0,91284.0,0.01095482]
[1767544831635,0.08764581,91289.0,91284.0,0.0657286]
[1767544832023,0.01095434,91288.0,91284.0,0.0657286]
[1767544832614,0.06572608,91288.0,91284.0,0.01095482]
[1767544832819,0.04631175,91287.0,91284.0,0.0657289]
[1767544833420,0.04631175,91287.0,91281.0,0.20518138]
[1767544833421,0.04631175,91287.0,91281.0,0.15145575]
[1767544833974,0.04631175,91287.0,91283.0,0.05477415]
[1767544834305,0.04631175,91287.0,91284.0,0.06572888]
[1767544835155,0.04631175,91287.0,91285.0,0.05477349]
[1767544835372,0.04631175,91287.0,91284.0,0.06572888]
[1767544836076,0.08764558,91289.0,91284.0,0.06572888]
[1767544836774,0.01095434,91288.0,91284.0,0.06572888]
[1767544836957,0.08764558,91289.0,91284.0,0.06572888]
[1767544837151,0.04637598,91287.0,91283.0,0.06572961]
[1767544837341,0.04637598,91287.0,91284.0,0.06572888]
[1767544838881,0.04637598,91287.0,91284.0,0.04381594]
[1767544839249,0.04637598,91287.0,91285.0,0.05477345]
[1767544839981,0.04637598,91287.0,91284.0,0.05477076]
[1767544840899,0.01095434,91288.0,91284.0,0.01095482]
[1767544841474,0.01095434,91288.0,91284.0,0.05536455]
[1767544843082,0.05733032,91288.0,91284.0,0.01095482]
[1767544843664,0.05733032,91288.0,91284.0,0.01091482]
[1767544845970,0.000999,91284.0,91280.0,0.06573005]
[1767544846207,0.06572795,91286.0,91281.0,0.01095518]
[1767544846387,0.06572795,91286.0,91281.0,0.06573064]
[1767544846597,0.11210393,91286.0,91281.0,0.06573064]
[1767544846803,0.06572795,91286.0,91281.0,0.06573064]
[1767544847200,0.06572795,91286.0,91282.0,0.01095506]
[1767544847406,0.06572795,91286.0,91281.0,0.06573064]
[1767544847927,0.04637598,91285.0,91281.0,0.06573064]
[1767544848126,0.04637598,91285.0,91282.0,0.01095506]
[1767544848435,0.04637598,91285.0,91282.0,0.06572992]
[1767544848625,0.04737498,91282.0,91281.0,0.06573064]
[1767544848828,0.04737498,91282.0,91281.0,0.05149394]
[1767544849028,0.04637598,91282.0,91281.0,0.05149394]
[1767544849412,0.04637598,91282.0,91281.0,0.06244912]
[1767544849730,0.04637598,91282.0,91281.0,0.05696331]
[1767544850512,0.06572682,91287.0,91282.0,0.06568479]
[1767544851054,0.04637598,91286.0,91282.0,0.06568479]
[1767544851964,0.04637598,91286.0,91283.0,0.06572959]
[1767544852181,0.04637598,91286.0,91285.0,0.05477351]
[1767544852359,0.04637598,91286.0,91282.0,0.01090963]
[1767544852521,0.04637598,91286.0,91283.0,0.06572964]
[1767544853131,0.04637598,91287.0,91283.0,0.06572964]
[1767544853550,0.04637598,91287.0,91284.0,0.01095482]
[1767544854478,0.04637598,91287.0,91284.0,0.01091482]
[1767544855676,0.01095434,91288.0,91284.0,0.06568883]
[1767544856172,0.08764548,91289.0,91284.0,0.11009856]
[1767544856517,0.08764548,91289.0,91284.0,0.11009837]
[1767544856715,0.08764548,91289.0,91285.0,0.0109547]
[1767544857169,0.000999,91285.0,91284.0,0.05532455]
[1767544857396,0.000999,91285.0,91284.0,0.04440973]
[1767544857606,0.06572681,91287.0,91284.0,0.04440973]
[1767544857933,0.06572681,91287.0,91284.0,0.04431888]
[1767544858086,0.05477294,91286.0,91284.0,0.04431888]
[1767544858286,0.05477351,91285.0,91279.0,0.06573201]
[1767544858627,0.06572989,91283.0,91279.0,0.0310414]
[1767544858820,0.01095458,91286.0,91279.0,0.26110495]
[1767544858967,0.06572792,91286.0,91281.0,0.06573074]
[1767544859973,0.06572699,91287.0,91282.0,0.06573036]
[1767544860219,0.06572607,91288.0,91283.0,0.04793357]
[1767544860426,0.06572692,91287.0,91282.0,0.06573036]
[1767544860826,0.04585642,91286.0,91283.0,0.01095494]
[1767544860985,0.04585642,91286.0,91282.0,0.06573036]
[1767544861327,0.06572692,91287.0,91282.0,0.05629145]
[1767544861527,0.0109547,91285.0,91282.0,0.04538181]
[1767544861730,0.06563991,91285.0,91282.0,0.04533639]
[1767544862226,0.06563991,91285.0,91280.0,0.06573153]
[1767544862388,0.04585642,91284.0,91280.0,0.06573153]
[1767544862809,0.05681124,91284.0,91280.0,0.0109553]
[1767544863011,0.01095482,91284.0,91280.0,0.0657318]
[1767544863253,0.01086596,91285.0,91280.0,0.0657318]
[1767544863470,0.05672238,91285.0,91280.0,0.0657318]
[1767544864017,0.05672238,91285.0,91281.0,0.01095518]
[1767544864434,0.05681124,91284.0,91279.0,0.06573247]
[1767544864676,0.05681124,91284.0,91280.0,0.0109553]
[1767544865835,0.05681124,91284.0,91279.0,0.06573247]
[1767544865836,0.04585642,91283.0,91279.0,0.06573247]
[1767544866038,0.04585642,91283.0,91280.0,0.0109553]
[1767544866258,0.04585642,91283.0,91281.0,0.0547757]
[1767544866499,0.04485742,91283.0,91281.0,0.0547757]
[1767544866627,0.04485742,91283.0,91280.0,0.06573155]
[1767544867023,0.06572854,91285.0,91281.0,0.04538181]
[1767544867344,0.06572854,91285.0,91281.0,0.05633699]
[1767544867528,0.0656398,91285.0,91281.0,0.05633699]
[1767544867730,0.0656398,91285.0,91281.0,0.01095518]
[1767544869381,0.06572749,91286.0,91281.0,0.05477586]
[1767544870006,0.01095458,91286.0,91279.0,0.01095542]
[1767544870189,0.01095482,91284.0,91275.0,0.0109559]
[1767544870383,0.05477572,91282.0,91276.0,0.05477851]
[1767544870811,0.04585642,91281.0,91277.0,0.06573383]
[1767544871026,0.06572934,91284.0,91278.0,0.04409966]
[1767544871210,0.01095506,91282.0,91277.0,0.06573383]
[1767544871811,0.05681124,91284.0,91279.0,0.065732]
[1767544872481,0.11158542,91284.0,91279.0,0.01095542]
[1767544872619,0.11158542,91284.0,91279.0,0.01090999]
[1767544872991,0.065729,91284.0,91279.0,0.01090999]
[1767544873286,0.06572822,91285.0,91280.0,0.11111362]
[1767544873414,0.06572859,91286.0,91281.0,0.01095518]
[1767544873614,0.11158501,91286.0,91281.0,0.01095518]
[1767544873817,0.04585642,91285.0,91281.0,0.01095518]
[1767544874164,0.06572859,91286.0,91281.0,0.01095518]
[1767544874531,0.11158324,91287.0,91282.0,0.01095506]
[1767544874940,0.02192,91289.0,91284.0,0.06572891]
[1767544876081,0.01095434,91288.0,91284.0,0.01095482]
[1767544876457,0.06572607,91288.0,91283.0,0.06572917]
[1767544876655,0.06572689,91287.0,91283.0,0.04538181]
[1767544876976,0.01095446,91287.0,91283.0,0.05633675]
[1767544877228,0.01095446,91287.0,91284.0,0.04538181]
[1767544877439,0.01095494,91283.0,91277.0,0.06573346]
[1767544877559,0.01095482,91284.0,91279.0,0.01095542]
[1767544877771,0.01095506,91282.0,91278.0,0.04538181]
[1767544877970,0.04585642,91281.0,91277.0,0.06573346]
[1767544878382,0.04585642,91281.0,91278.0,0.01095554]
[1767544878593,0.04585642,91281.0,91278.0,0.06573324]
[1767544879230,0.04585642,91281.0,91279.0,0.05477707]
[1767544879804,0.04585642,91281.0,91278.0,0.06573324]
[1767544880284,0.04585642,91281.0,91278.0,0.06473424]
[1767544880822,0.01095506,91282.0,91277.0,0.0657338]
[1767544881044,0.06573019,91283.0,91282.0,0.000999]
[1767544881253,0.06572895,91284.0,91282.0,0.000999]
[1767544881446,0.04585642,91283.0,91282.0,0.000999]
[1767544881617,0.04585642,91282.0,91279.0,0.01095542]
[1767544881814,0.06572968,91283.0,91279.0,0.01095542]
[1767544882019,0.04585642,91282.0,91278.0,0.06573276]
[1767544882242,0.05681148,91282.0,91278.0,0.01095554]
[1767544882440,0.04585642,91282.0,91278.0,0.01095554]
[1767544883146,0.06572969,91283.0,91277.0,0.06573283]
[1767544883147,0.04585642,91280.0,91277.0,0.01095566]
[1767544883450,0.06572969,91283.0,91278.0,0.05633735]
[1767544883893,0.01095506,91282.0,91279.0,0.04538181]
[1767544884265,0.06573041,91282.0,91279.0,0.04438281]
[1767544884999,0.05477591,91281.0,91279.0,0.04438281]
[1767544885160,0.06573041,91282.0,91279.0,0.04438281]
[1767544885369,0.0547764,91281.0,91279.0,0.04438281]
[1767544885788,0.0547764,91281.0,91275.0,0.01445136]
[1767544885971,0.06573158,91281.0,91277.0,0.03861117]
[1767544886508,0.06573041,91282.0,91277.0,0.04956683]
[1767544887051,0.06573041,91282.0,91277.0,0.10434509]
[1767544887480,0.06573041,91282.0,91278.0,0.03861117]
[1767544888332,0.01095518,91281.0,91278.0,0.03861117]
[1767544888569,0.04585642,91281.0,91277.0,0.01095566]
[1767544889983,0.06573041,91282.0,91277.0,0.01095566]
[1767544890115,0.04585642,91281.0,91277.0,0.06573373]
[1767544890589,0.04585642,91281.0,91242.0,0.0004]
[1767544890590,0.04775349,91248.0,91242.0,0.0004]
[1767544890751,0.02192,91252.0,91248.0,0.000999]
[1767544890956,0.01095938,91246.0,91243.0,0.04931486]
[1767544891299,0.02192,91251.0,91233.0,0.02192]
[1767544891300,0.04775349,91235.0,91233.0,0.02192]
[1767544891422,0.05473661,91233.0,91232.0,0.02192]
[1767544891626,0.05464787,91233.0,91232.0,0.05703696]
[1767544892794,0.05455912,91233.0,91232.0,0.05703696]
[1767544893537,0.05455912,91233.0,91232.0,0.05170627]
[1767544894901,0.05455912,91233.0,91232.0,0.05070727]
[1767544896387,0.0109613,91230.0,91226.0,0.03511696]
[1767544896577,0.00987367,91229.0,91226.0,0.03511696]
[1767544896770,0.01096142,91229.0,91225.0,0.0109619]
[1767544896972,0.00571288,91226.0,91225.0,0.0109619]
[1767544897176,0.04774998,91231.0,91225.0,0.0109619]
[1767544897371,0.01096118,91231.0,91227.0,0.04707496]
[1767544897821,0.06576721,91231.0,91227.0,0.04707496]
[1767544898227,0.02575657,91230.0,91226.0,0.01096178]
[1767544898429,0.01096118,91231.0,91226.0,0.01096178]
[1767544898602,0.01096118,91231.0,91227.0,0.01096166]
[1767544898785,0.11344368,91231.0,91226.0,0.01096178]
[1767544898989,0.01096142,91229.0,91225.0,0.0109619]
[1767544899435,0.01096142,91229.0,91224.0,0.01096202]
[1767544899585,0.06576863,91229.0,91224.0,0.05803698]
[1767544899984,0.01096142,91229.0,91224.0,0.05803698]
[1767544900380,0.06576681,91232.0,91226.0,0.04707496]
[1767544900734,0.06576585,91233.0,91230.0,0.04707496]
[1767544901067,0.05863763,91232.0,91227.0,0.06576964]
[1767544901666,0.04767657,91232.0,91229.0,0.06576855]
[1767544901866,0.04767657,91232.0,91231.0,0.05480593]
[1767544902075,0.01096046,91237.0,91233.0,0.04707496]
[1767544902282,0.05479891,91243.0,91236.0,0.06576337]
[1767544902551,0.03287986,91242.0,91237.0,0.05803542]
[1767544902777,0.03287986,91242.0,91237.0,0.11283767]
[1767544903148,0.01095986,91242.0,91237.0,0.05803542]
[1767544903349,0.0657592,91242.0,91237.0,0.05803542]
[1767544904181,0.01195946,91237.0,91234.0,0.04707496]
[1767544904394,0.000999,91237.0,91234.0,0.04707496]
[1767544904535,0.01096046,91237.0,91234.0,0.04707496]
[1767544904741,0.01096046,91237.0,91232.0,0.06576636]
[1767544905200,0.01096046,91237.0,91233.0,0.01096094]
[1767544905399,0.05863679,91239.0,91234.0,0.01096082]
[1767544905537,0.05863679,91239.0,91233.0,0.06576559]
[1767544905538,0.06576209,91238.0,91233.0,0.06576559]
[1767544905742,0.06576209,91238.0,91233.0,0.01096094]
[1767544906156,0.05863703,91237.0,91233.0,0.01096094]
[1767544906496,0.04767657,91237.0,91233.0,0.01096094]
[1767544906857,0.04767657,91237.0,91234.0,0.06576475]
[1767544907046,0.04767657,91237.0,91235.0,0.05480345]
[1767544907995,0.0109601,91240.0,91235.0,0.06576415]
[1767544908599,0.04767657,91240.0,91236.0,0.01096058]
[1767544909076,0.04767657,91240.0,91236.0,0.0657631]
[1767544910132,0.04767657,91240.0,91237.0,0.01096046]
[1767544910551,0.06575994,91241.0,91236.0,0.0657631]
[1767544910915,0.04767657,91240.0,91236.0,0.0657631]
[1767544911164,0.04767657,91240.0,91237.0,0.06576231]
[1767544911338,0.04767657,91240.0,91237.0,0.01096046]
[1767544911741,0.04767657,91240.0,91238.0,0.05480125]
[1767544911943,0.06575851,91243.0,91238.0,0.06576159]
[1767544912117,0.01095974,91243.0,91239.0,0.01096022]
[1767544912972,0.08771781,91244.0,91239.0,0.06576134]
[1767544913478,0.06575781,91244.0,91239.0,0.06576134]
[1767544913675,0.02192,91245.0,91242.0,0.01095986]
[1767544913886,0.0328795,91245.0,91240.0,0.05803506]
[1767544914085,0.000999,91242.0,91240.0,0.0109601]
[1767544914234,0.04767657,91244.0,91240.0,0.0109601]
[1767544914624,0.04767657,91244.0,91240.0,0.0657606]
[1767544916077,0.0328795,91245.0,91241.0,0.05803494]
[1767544917219,0.0328795,91245.0,91239.0,0.01113642]
[1767544917559,0.0328795,91245.0,91241.0,0.04707496]
[1767544917737,0.03192885,91245.0,91241.0,0.04707496]
[1767544917938,0.02096935,91245.0,91243.0,0.04707496]
[1767544918928,0.02096935,91245.0,91242.0,0.06575917]
[1767544918929,0.04767657,91244.0,91242.0,0.06575917]
[1767544919141,0.02096935,91245.0,91242.0,0.06575917]
[1767544920283,0.07576707,91245.0,91240.0,0.0657605]
[1767544920487,0.000999,91242.0,91241.0,0.01095998]
[1767544921106,0.04574665,91246.0,91242.0,0.01095986]
[1767544921320,0.06575565,91247.0,91242.0,0.01095986]
[1767544921321,0.06575565,91247.0,91242.0,0.10457318]
[1767544921529,0.06575565,91247.0,91242.0,0.0547992]
[1767544921885,0.01095938,91246.0,91242.0,0.01095986]
[1767544922085,0.01095938,91246.0,91241.0,0.02182948]
[1767544922609,0.04574665,91245.0,91241.0,0.02182948]
[1767544922811,0.06575565,91247.0,91241.0,0.03278946]
[1767544923561,0.04574665,91249.0,91244.0,0.06575735]
[1767544923846,0.04574665,91248.0,91244.0,0.06575735]
[1767544923993,0.04574665,91248.0,91244.0,0.01095962]
[1767544924201,0.01095914,91248.0,91244.0,0.01095962]
[1767544924578,0.01095914,91248.0,91243.0,0.11553244]
[1767544925154,0.06575683,91246.0,91243.0,0.04977398]
[1767544925294,0.06575568,91247.0,91242.0,0.11553306]
[1767544925491,0.06575568,91247.0,91242.0,0.04977398]
[1767544925697,0.01095926,91247.0,91242.0,0.1045731]
[1767544926099,0.0109595,91245.0,91242.0,0.04977398]
[1767544926349,0.06575644,91246.0,91242.0,0.04977398]
[1767544926545,0.06575645,91246.0,91242.0,0.04977398]
[1767544926709,0.0109595,91245.0,91242.0,0.04977398]
[1767544926909,0.0109595,91245.0,91242.0,0.0355302]
[1767544927110,0.05670615,91245.0,91240.0,0.06576003]
[1767544927297,0.05670615,91245.0,91240.0,0.01576003]
[1767544927884,0.04574665,91245.0,91241.0,0.05479933]
[1767544928078,0.04574665,91245.0,91242.0,0.06575913]
[1767544928280,0.04474765,91245.0,91243.0,0.05479867]
[1767544930160,0.04474765,91245.0,91244.0,0.05479812]
[1767544930558,0.01095902,91249.0,91244.0,0.06575774]
[1767544930763,0.0328789,91250.0,91245.0,0.0109595]
[1767544931091,0.0252666,91249.0,91245.0,0.06575654]
[1767544931396,0.0252666,91249.0,91245.0,0.06571217]
[1767544931893,0.0252666,91249.0,91245.0,0.01091513]
[1767544932045,0.0252666,91249.0,91245.0,0.06571259]
[1767544932246,0.0252666,91249.0,91245.0,0.01091513]
[1767544932528,0.01095926,91247.0,91243.0,0.04977398]
[1767544932732,0.06575422,91249.0,91245.0,0.04977398]
[1767544933313,0.0252666,91246.0,91242.0,0.01095986]
[1767544933512,0.0252666,91246.0,91242.0,0.06575908]
[1767544933713,0.0252666,91246.0,91243.0,0.06575841]
[1767544933921,0.08767416,91249.0,91244.0,0.01095962]
[1767544934131,0.08767424,91249.0,91244.0,0.01095962]
[1767544934531,0.01095914,91248.0,91243.0,0.06575841]
[1767544935141,0.02192,91249.0,91244.0,0.06575727]
[1767544935325,0.0252666,91248.0,91244.0,0.06575727]
[1767544935529,0.0252666,91248.0,91245.0,0.05479733]
[1767544935796,0.0252666,91248.0,91244.0,0.06575727]
[1767544936358,0.000999,91244.0,91242.0,0.065759]
[1767544936674,0.0262656,91244.0,91242.0,0.065759]
[1767544936847,0.0252666,91244.0,91242.0,0.065759]
[1767544937048,0.0252666,91244.0,91242.0,0.01095986]
[1767544937454,0.0252666,91244.0,91242.0,0.0657589]
[1767544937665,0.0109601,91240.0,91237.0,0.05013398]
[1767544937833,0.0109601,91240.0,91239.0,0.04977398]
[1767544938030,0.10054837,91238.0,91237.0,0.00036]
[1767544938447,0.10054837,91238.0,91237.0,0.00031564]
[1767544938647,0.10054837,91238.0,91237.0,6.4e-07]
[1767544938988,0.04574665,91237.0,91233.0,0.05480462]
[1767544939136,0.01096022,91239.0,91234.0,0.01096082]
[1767544939335,0.01096022,91239.0,91233.0,0.0658248]
[1767544939787,0.01096034,91238.0,91233.0,0.01102018]
[1767544940002,0.06576164,91239.0,91234.0,0.01096082]
[1767544940240,0.06576164,91239.0,91233.0,0.06582488]
[1767544940241,0.01095998,91241.0,91235.0,0.0109607]
[1767544940562,0.0109601,91240.0,91235.0,0.06576374]
[1767544940763,0.0109601,91240.0,91235.0,0.0109607]
[1767544941101,0.04574665,91239.0,91235.0,0.0109607]
[1767544941517,0.04574665,91237.0,91233.0,0.06582379]
[1767544941711,0.04543165,91237.0,91233.0,0.06582379]
[1767544942316,0.04543165,91237.0,91233.0,5.924e-05]
[1767544942511,0.05639211,91237.0,91233.0,5.924e-05]
[1767544943139,0.01096082,91234.0,91229.0,0.02089927]